[Event "NED-ch U14 Youth 2019"]
[Site "Assen"]
[Date "2019.05.02"]
[Round "7.13"]
[White "Arnold, Lorin"]
[Black "Shadrin, Mitia"]
[Result "1/2-1/2"]
[ECO "B23"]
[WhiteElo "1598"]
[BlackElo "1692"]
[Annotator "NA"]
[PlyCount "61"]
[EventDate "2019.04.28"]
[EventType "swiss"]
[EventCountry "NED"]
[SourceTitle "playchess.com"]
[Source "ChessBase"]
[SourceQuality "1"]
[TimeControl "5400+30"]

1. e4 {[%emt 0:00:00]} c5 {[%emt 0:00:00]} 2. Nc3 {[%emt 0:00:00]} g6 {[%emt 0:00:51]} 3. f4 {[%emt 0:00:21]} Bg7 {[%emt 0:00:39]} 4. Nf3 {[%emt 0:00:10]} Nc6 {[%emt 0:00:41]} 5. Bc4 {[%emt 0:00:29]} e6 {[%emt 0:00:15]} 6. d3 {[%emt 0:00:12]} Nge7 {[%emt 0:00:25]} 7. O-O {[%emt 0:03:49]} O-O {[%emt 0:00:06]} 8. Qe1 {[%emt 0:00:09]} d5 {[%emt 0:00:08]} 9. Bb3 {[%emt 0:01:12]} Nd4 {[%emt 0:00:11]} 10. Qh4 {[%emt 0:04:00]} Nxb3 {[%emt 0:05:32]} 11. axb3 {[%emt 0:00:08]} Nc6 {[%emt 0:04:07]} 12. exd5 {[%emt 0:08:44]} exd5 {[%emt 0:00:24]} 13. Bd2 {[%emt 0:04:36]} Qxh4 {[%emt 0:01:40]} 14. Nxh4 {[%emt 0:00:10]} Rd8 {[%emt 0:02:41]} 15. f5 {[%emt 0:00:21]} Bd4+ {[%emt 0:04:05]} 16. Kh1 {[%emt 0:00:15]} Nb4 {[%emt 0:07:32]} 17. fxg6 {[%emt 0:02:22]} hxg6 {[%emt 0:00:32]} 18. Rf3 {[%emt 0:02:46]} Nxc2 {[%emt 0:05:38]} 19. Raf1 {[%emt 0:00:14]} Bg4 {[%emt 0:04:40]} 20. Rxf7 {[%emt 0:01:19]} Ne3 {[%emt 0:05:54]} 21. Bxe3 {[%emt 0:01:05]} Bxe3 {[%emt 0:00:39]} 22. h3 {[%emt 0:04:54]} Be6 {[%emt 0:10:41]} 23. Rxb7 {[%emt 0:11:46]} Rf8 {[%emt 0:01:00]} 24. Rxf8+ {[%emt 0:02:53]} Rxf8 {[%emt 0:00:05]} 25. Nxg6 {[%emt 0:00:18]} Rf1+ {[%emt 0:00:34]} 26. Kh2 {[%emt 0:00:11]} d4 {[%emt 0:01:32]} 27. Ne4 {[%emt 0:01:31]} Bf7 {[%emt 0:01:04]} 28. Ne7+ {[%emt 0:08:25]} Kf8 {[%emt 0:02:37]} 29. Rxa7 {[%emt 0:05:12]} Rd1 {[%emt 0:03:40]} 30. Nf5 {[%emt 0:07:11]} Bg1+ {[%emt 0:01:44]} 31. Kh1 {[%emt 0:03:13]} 1/2-1/2

[Event "NED-ch U14 Youth 2019"]
[Site "Assen"]
[Date "2019.05.03"]
[Round "8.1"]
[White "Roebers, Eline"]
[Black "Pham, Khoi"]
[Result "1-0"]
[ECO "B91"]
[WhiteElo "2077"]
[BlackElo "2140"]
[Annotator "NA"]
[PlyCount "63"]
[EventDate "2019.04.28"]
[EventType "swiss"]
[EventCountry "NED"]
[SourceTitle "playchess.com"]
[Source "ChessBase"]
[SourceQuality "1"]
[TimeControl "5400+30"]

1. e4 {[%emt 0:00:00]} c5 {[%emt 0:00:00]} 2. Nf3 {[%emt 0:00:00]} d6 {[%emt 0:00:00]} 3. d4 {[%emt 0:00:00]} cxd4 {[%emt 0:00:00]} 4. Nxd4 {[%emt 0:00:01]} Nf6 {[%emt 0:00:00]} 5. Nc3 {[%emt 0:00:09]} a6 {[%emt 0:00:00]} 6. g3 {[%emt 0:01:14]} e5 {[%emt 0:00:16]} 7. Nde2 {[%emt 0:00:35]} b5 {[%emt 0:00:32]} 8. Bg2 {[%emt 0:01:10]} Nbd7 {[%emt 0:07:04]} 9. Nd5 {[%emt 0:06:50]} Nxd5 {[%emt 0:01:50]} 10. Qxd5 {[%emt 0:00:39]} Nb6 {[%emt 0:00:21]} 11. Qd1 {[%emt 0:01:19]} Be7 {[%emt 0:01:20]} 12. O-O {[%emt 0:01:45]} b4 {[%emt 0:05:01]} 13. c3 {[%emt 0:05:09]} bxc3 {[%emt 0:03:06]} 14. Nxc3 {[%emt 0:01:46]} O-O {[%emt 0:01:44]} 15. f4 {[%emt 0:02:09]} a5 {[%emt 0:01:33]} 16. Qf3 {[%emt 0:03:46]} exf4 {[%emt 0:05:50]} 17. Bxf4 {[%emt 0:02:46]} Bb7 {[%emt 0:05:24]} 18. Rfd1 {[%emt 0:03:37]} Nc4 {[%emt 0:03:21]} 19. b3 {[%emt 0:04:30]} Qb6+ {[%emt 0:04:16]} 20. Qf2 {[%emt 0:03:04]} Qxf2+ {[%emt 0:14:33]} 21. Kxf2 {[%emt 0:00:15]} Nb2 {[%emt 0:01:25]} 22. Rd2 {[%emt 0:03:38]} Bf6 {[%emt 0:00:24]} 23. Rc1 {[%emt 0:15:58]} Rac8 {[%emt 0:00:41]} 24. e5 {[%emt 0:14:11]} dxe5 {[%emt 0:16:42]} 25. Bxb7 {[%emt 0:03:10]} Rcd8 {[%emt 0:00:15]} 26. Rxb2 {[%emt 0:04:12]} exf4 {[%emt 0:00:06]} 27. gxf4 {[%emt 0:01:21]} Rd7 {[%emt 0:01:33]} 28. Ba6 {[%emt 0:02:44]} Rd4 {[%emt 0:03:23]} 29. Kf3 {[%emt 0:02:18]} h6 {[%emt 0:03:42]} 30. Re2 {[%emt 0:01:54]} Rfd8 {[%emt 0:01:52]} 31. Ne4 {[%emt 0:01:27]} Bh4 {[%emt 0:00:56]} 32. Rc8 {[%emt 0:02:11]} 1-0

[Event "NED-ch U14 Youth 2019"]
[Site "Assen"]
[Date "2019.05.03"]
[Round "8.2"]
[White "Yeh, Timo"]
[Black "Kutchoukov, Daniel"]
[Result "1/2-1/2"]
[ECO "D35"]
[WhiteElo "1783"]
[BlackElo "1862"]
[Annotator "NA"]
[PlyCount "49"]
[EventDate "2019.04.28"]
[EventType "swiss"]
[EventCountry "NED"]
[SourceTitle "playchess.com"]
[Source "ChessBase"]
[SourceQuality "1"]
[TimeControl "5400+30"]

1. Nf3 {[%emt 0:00:00]} Nf6 {[%emt 0:00:00]} 2. c4 {[%emt 0:00:00]} e6 {[%emt 0:00:00]} 3. g3 {[%emt 0:00:00]} d5 {[%emt 0:00:12]} 4. cxd5 {[%emt 0:00:00]} exd5 {[%emt 0:00:13]} 5. Bg2 {[%emt 0:00:00]} Bd6 {[%emt 0:03:02]} 6. d4 {[%emt 0:00:00]} O-O {[%emt 0:00:38]} 7. Nc3 {[%emt 0:00:00]} c6 {[%emt 0:00:09]} 8. Qc2 {[%emt 0:00:01]} Re8 {[%emt 0:07:32]} 9. O-O {[%emt 0:00:06]} a6 {[%emt 0:05:12]} 10. Re1 {[%emt 0:00:33]} Nbd7 {[%emt 0:11:54]} 11. Nh4 {[%emt 0:00:30]} Nb6 {[%emt 0:17:03]} 12. Nf5 {[%emt 0:06:13]} Bf8 {[%emt 0:01:15]} 13. Bf4 {[%emt 0:01:20]} Nc4 {[%emt 0:09:33]} 14. a3 {[%emt 0:04:07]} Ne4 {[%emt 0:10:27]} 15. Ne3 {[%emt 0:02:35]} Nxe3 {[%emt 0:05:21]} 16. Bxe3 {[%emt 0:00:46]} Bf5 {[%emt 0:00:43]} 17. Qb3 {[%emt 0:01:37]} Rb8 {[%emt 0:02:25]} 18. Bf4 {[%emt 0:01:06]} Bd6 {[%emt 0:00:09]} 19. Nxe4 {[%emt 0:00:19]} Bxf4 {[%emt 0:02:32]} 20. Nc5 {[%emt 0:00:17]} Bd6 {[%emt 0:00:59]} 21. Rac1 {[%emt 0:00:26]} Qg5 {[%emt 0:05:27]} 22. f4 {[%emt 0:10:18]} Qf6 {[%emt 0:03:16]} 23. e3 {[%emt 0:00:44]} Bxc5 {[%emt 0:03:58]} 24. Rxc5 {[%emt 0:00:09]} Be4 {[%emt 0:01:10]} 25. Bxe4 {[%emt 0:01:49]} 1/2-1/2

[Event "NED-ch U14 Youth 2019"]
[Site "Assen"]
[Date "2019.05.03"]
[Round "8.3"]
[White "Bleeker, Kasper"]
[Black "Slagboom, Leandro"]
[Result "1/2-1/2"]
[ECO "B13"]
[WhiteElo "1932"]
[BlackElo "1738"]
[Annotator "NA"]
[PlyCount "62"]
[EventDate "2019.04.28"]
[EventType "swiss"]
[EventCountry "NED"]
[SourceTitle "playchess.com"]
[Source "ChessBase"]
[SourceQuality "1"]
[TimeControl "5400+30"]

1. e4 {[%emt 0:00:00]} c6 {[%emt 0:00:00]} 2. d4 {[%emt 0:00:04]} d5 {[%emt 0:00:00]} 3. exd5 {[%emt 0:01:09]} cxd5 {[%emt 0:00:00]} 4. Bd3 {[%emt 0:00:07]} Nc6 {[%emt 0:00:00]} 5. c3 {[%emt 0:00:04]} Qc7 {[%emt 0:00:00]} 6. h3 {[%emt 0:01:35]} Nf6 {[%emt 0:00:02]} 7. Ne2 {[%emt 0:02:09]} g6 {[%emt 0:01:44]} 8. Bf4 {[%emt 0:01:13]} Qb6 {[%emt 0:03:56]} 9. Qc2 {[%emt 0:03:32]} Bf5 {[%emt 0:01:06]} 10. Bxf5 {[%emt 0:01:54]} gxf5 {[%emt 0:00:02]} 11. Ng3 {[%emt 0:03:43]} e6 {[%emt 0:00:38]} 12. Nd2 {[%emt 0:01:10]} O-O-O {[%emt 0:07:28]} 13. Nf3 {[%emt 0:02:23]} Bd6 {[%emt 0:03:42]} 14. Ne5 {[%emt 0:03:38]} Qc7 {[%emt 0:02:24]} 15. Qe2 {[%emt 0:02:20]} Ne4 {[%emt 0:06:44]} 16. Nxc6 {[%emt 0:12:08]} Qxc6 {[%emt 0:00:29]} 17. Bxd6 {[%emt 0:01:08]} Qxd6 {[%emt 0:01:29]} 18. Nxe4 {[%emt 0:00:34]} fxe4 {[%emt 0:00:26]} 19. O-O-O {[%emt 0:00:49]} Kb8 {[%emt 0:00:49]} 20. Kb1 {[%emt 0:02:47]} Rc8 {[%emt 0:04:14]} 21. f3 {[%emt 0:02:15]} f5 {[%emt 0:01:53]} 22. fxe4 {[%emt 0:05:11]} fxe4 {[%emt 0:00:27]} 23. Rhf1 {[%emt 0:00:08]} Rcf8 {[%emt 0:01:02]} 24. Qh5 {[%emt 0:01:08]} Qg3 {[%emt 0:01:35]} 25. Rf7 {[%emt 0:03:44]} e3 {[%emt 0:05:36]} 26. Rdf1 {[%emt 0:05:41]} Rxf7 {[%emt 0:01:14]} 27. Rxf7 {[%emt 0:00:52]} e2 {[%emt 0:01:09]} 28. Qxe2 {[%emt 0:00:17]} Qg6+ {[%emt 0:00:05]} 29. Kc1 {[%emt 0:00:07]} Qxf7 {[%emt 0:01:02]} 30. Qe5+ {[%emt 0:00:05]} Kc8 {[%emt 0:00:25]} 31. Qxh8+ {[%emt 0:00:07]} Kd7 {[%emt 0:00:15]} 1/2-1/2

[Event "NED-ch U14 Youth 2019"]
[Site "Assen"]
[Date "2019.05.03"]
[Round "8.4"]
[White "Brandsma, Romayn"]
[Black "De Winter, Arthur"]
[Result "1-0"]
[ECO "B48"]
[WhiteElo "1958"]
[BlackElo "1661"]
[Annotator "NA"]
[PlyCount "77"]
[EventDate "2019.04.28"]
[EventType "swiss"]
[EventCountry "NED"]
[SourceTitle "playchess.com"]
[Source "ChessBase"]
[SourceQuality "1"]
[TimeControl "5400+30"]

1. e4 {[%emt 0:00:00]} c5 {[%emt 0:00:00]} 2. Nf3 {[%emt 0:00:00]} e6 {[%emt 0:00:00]} 3. d4 {[%emt 0:00:00]} cxd4 {[%emt 0:00:00]} 4. Nxd4 {[%emt 0:00:00]} Nc6 {[%emt 0:00:00]} 5. Nc3 {[%emt 0:00:00]} Qc7 {[%emt 0:00:12]} 6. Be3 {[%emt 0:00:16]} a6 {[%emt 0:00:25]} 7. Qf3 {[%emt 0:01:09]} Nf6 {[%emt 0:00:47]} 8. O-O-O {[%emt 0:01:25]} Bb4 {[%emt 0:02:45]} 9. Bf4 {[%emt 0:17:40]} e5 {[%emt 0:09:40]} 10. Nd5 {[%emt 0:04:42]} Nxd5 {[%emt 0:02:50]} 11. exd5 {[%emt 0:00:13]} Ne7 {[%emt 0:09:14]} 12. Bg3 {[%emt 0:06:19]} d6 {[%emt 0:01:04]} 13. Nb3 {[%emt 0:01:31]} O-O {[%emt 0:01:51]} 14. h4 {[%emt 0:12:14]} a5 {[%emt 0:18:16]} 15. a3 {[%emt 0:05:53]} Bf5 {[%emt 0:02:21]} 16. Bd3 {[%emt 0:01:54]} Bxd3 {[%emt 0:00:06]} 17. Qxd3 {[%emt 0:00:12]} Bc5 {[%emt 0:03:24]} 18. Bxe5 {[%emt 0:08:22]} dxe5 {[%emt 0:00:27]} 19. d6 {[%emt 0:00:54]} Qb6 {[%emt 0:00:19]} 20. Nxc5 {[%emt 0:00:58]} Qxc5 {[%emt 0:00:12]} 21. dxe7 {[%emt 0:00:17]} Qxe7 {[%emt 0:00:07]} 22. Qd6 {[%emt 0:04:34]} Rfe8 {[%emt 0:05:42]} 23. Rd5 {[%emt 0:04:57]} f6 {[%emt 0:03:20]} 24. Rhd1 {[%emt 0:01:38]} Ra6 {[%emt 0:05:22]} 25. Qxe7 {[%emt 0:02:19]} Rxe7 {[%emt 0:00:23]} 26. Rd6 {[%emt 0:01:24]} Ra7 {[%emt 0:02:00]} 27. Rb6 {[%emt 0:01:31]} Kf7 {[%emt 0:00:24]} 28. Rd5 {[%emt 0:01:15]} Kg6 {[%emt 0:04:46]} 29. g4 {[%emt 0:04:09]} h5 {[%emt 0:01:34]} 30. f3 {[%emt 0:01:25]} hxg4 {[%emt 0:03:18]} 31. fxg4 {[%emt 0:00:02]} e4 {[%emt 0:00:09]} 32. h5+ {[%emt 0:00:26]} Kf7 {[%emt 0:00:46]} 33. Kd2 {[%emt 0:04:36]} e3+ {[%emt 0:02:45]} 34. Ke2 {[%emt 0:00:02]} Re4 {[%emt 0:00:09]} 35. g5 {[%emt 0:04:34]} fxg5 {[%emt 0:01:52]} 36. Rxg5 {[%emt 0:00:11]} Rc4 {[%emt 0:00:58]} 37. c3 {[%emt 0:00:26]} Rh4 {[%emt 0:01:13]} 38. Kxe3 {[%emt 0:00:48]} Rh2 {[%emt 0:00:13]} 39. Rc5 {[%emt 0:01:02]} 1-0

[Event "NED-ch U14 Youth 2019"]
[Site "Assen"]
[Date "2019.05.03"]
[Round "8.5"]
[White "Catalan, Ciro"]
[Black "Klaren, Duncan"]
[Result "0-1"]
[ECO "A65"]
[WhiteElo "1599"]
[BlackElo "1980"]
[Annotator "NA"]
[PlyCount "80"]
[EventDate "2019.04.28"]
[EventType "swiss"]
[EventCountry "NED"]
[SourceTitle "playchess.com"]
[Source "ChessBase"]
[SourceQuality "1"]
[TimeControl "5400+30"]

1. d4 {[%emt 0:00:00]} Nf6 {[%emt 0:00:00]} 2. c4 {[%emt 0:00:00]} c5 {[%emt 0:00:00]} 3. d5 {[%emt 0:00:00]} e6 {[%emt 0:00:00]} 4. Nc3 {[%emt 0:00:00]} exd5 {[%emt 0:00:00]} 5. cxd5 {[%emt 0:00:00]} d6 {[%emt 0:00:00]} 6. e4 {[%emt 0:00:02]} g6 {[%emt 0:00:00]} 7. f3 {[%emt 0:00:08]} Bg7 {[%emt 0:00:04]} 8. Nge2 {[%emt 0:00:08]} O-O {[%emt 0:00:13]} 9. Ng3 {[%emt 0:00:09]} a6 {[%emt 0:00:36]} 10. a4 {[%emt 0:00:04]} Re8 {[%emt 0:00:49]} 11. Be2 {[%emt 0:00:08]} h5 {[%emt 0:01:29]} 12. O-O {[%emt 0:00:13]} h4 {[%emt 0:01:04]} 13. Nh1 {[%emt 0:00:05]} h3 {[%emt 0:02:23]} 14. g3 {[%emt 0:00:34]} Nh7 {[%emt 0:00:42]} 15. Be3 {[%emt 0:00:48]} f5 {[%emt 0:00:48]} 16. Qd2 {[%emt 0:05:36]} Nd7 {[%emt 0:02:54]} 17. Nf2 {[%emt 0:05:49]} fxe4 {[%emt 0:06:29]} 18. Nfxe4 {[%emt 0:04:21]} Ndf6 {[%emt 0:01:56]} 19. Bd3 {[%emt 0:15:24]} Bf5 {[%emt 0:05:08]} 20. Bh6 {[%emt 0:18:44]} Nxe4 {[%emt 0:06:37]} 21. fxe4 {[%emt 0:03:40]} Bd4+ {[%emt 0:01:10]} 22. Kh1 {[%emt 0:01:57]} Bg4 {[%emt 0:00:57]} 23. Qf4 {[%emt 0:23:01]} Qd7 {[%emt 0:00:33]} 24. a5 {[%emt 0:04:53]} Bh5 {[%emt 0:11:01]} 25. Qd2 {[%emt 0:03:34]} Nf6 {[%emt 0:02:26]} 26. Be3 {[%emt 0:02:37]} Bxe3 {[%emt 0:07:24]} 27. Qxe3 {[%emt 0:00:02]} Ng4 {[%emt 0:00:11]} 28. Qd2 {[%emt 0:02:29]} Rf8 {[%emt 0:01:00]} 29. Kg1 {[%emt 0:04:24]} Ne5 {[%emt 0:00:52]} 30. Be2 {[%emt 0:00:40]} Bf3 {[%emt 0:01:56]} 31. Qd1 {[%emt 0:01:47]} Qg4 {[%emt 0:01:00]} 32. Bxf3 {[%emt 0:01:29]} Rxf3 {[%emt 0:00:34]} 33. Qe2 {[%emt 0:01:34]} Raf8 {[%emt 0:00:36]} 34. Rxf3 {[%emt 0:00:42]} Nxf3+ {[%emt 0:03:05]} 35. Kh1 {[%emt 0:00:02]} Rf7 {[%emt 0:00:53]} 36. Rb1 {[%emt 0:00:58]} Qg5 {[%emt 0:00:33]} 37. Rf1 {[%emt 0:00:58]} Nd4 {[%emt 0:00:42]} 38. Qe1 {[%emt 0:00:08]} Qd2 {[%emt 0:00:27]} 39. Rg1 {[%emt 0:00:44]} Qxb2 {[%emt 0:00:36]} 40. Qe3 {[%emt 0:00:57]} Rf2 {[%emt 0:42:52]} 0-1

[Event "NED-ch U14 Youth 2019"]
[Site "Assen"]
[Date "2019.05.03"]
[Round "8.6"]
[White "Boghossian, Wahe"]
[Black "Dekker, Thiemen"]
[Result "1-0"]
[ECO "C56"]
[WhiteElo "1820"]
[BlackElo "1521"]
[Annotator "NA"]
[PlyCount "53"]
[EventDate "2019.04.28"]
[EventType "swiss"]
[EventCountry "NED"]
[SourceTitle "playchess.com"]
[Source "ChessBase"]
[SourceQuality "1"]
[TimeControl "5400+30"]

1. e4 {[%emt 0:00:00]} e5 {[%emt 0:00:00]} 2. Nf3 {[%emt 1:31:00]} Nc6 {[%emt 0:00:00]} 3. d4 {[%emt 0:00:00]} exd4 {[%emt 0:00:00]} 4. Bc4 {[%emt 0:00:00]} Nf6 {[%emt 0:00:00]} 5. e5 {[%emt 0:00:00]} d5 {[%emt 0:00:07]} 6. Bb5 {[%emt 0:00:00]} Ne4 {[%emt 0:00:13]} 7. Nxd4 {[%emt 0:00:00]} Bc5 {[%emt 0:00:15]} 8. O-O {[%emt 0:00:00]} Bd7 {[%emt 0:00:28]} 9. Bxc6 {[%emt 0:00:00]} bxc6 {[%emt 0:00:12]} 10. c3 {[%emt 0:00:00]} O-O {[%emt 0:01:03]} 11. f3 {[%emt 0:00:00]} f6 {[%emt 0:00:53]} 12. e6 {[%emt 0:00:00]} Bxe6 {[%emt 0:07:31]} 13. fxe4 {[%emt 0:00:00]} dxe4 {[%emt 0:00:24]} 14. Kh1 {[%emt 0:00:00]} Bxd4 {[%emt 0:11:45]} 15. Qxd4 {[%emt 0:00:00]} Qxd4 {[%emt 0:00:39]} 16. cxd4 {[%emt 0:00:00]} f5 {[%emt 0:03:43]} 17. Na3 {[%emt 0:00:00]} h6 {[%emt 0:06:50]} 18. h4 {[%emt 0:00:00]} Bd5 {[%emt 0:05:34]} 19. Bf4 {[%emt 0:00:00]} Rae8 {[%emt 0:07:18]} 20. Nc2 {[%emt 0:00:00]} Rf7 {[%emt 0:05:08]} 21. Ne3 {[%emt 0:00:00]} Ref8 {[%emt 0:02:34]} 22. Nxd5 {[%emt 0:00:00]} cxd5 {[%emt 0:00:16]} 23. h5 {[%emt 0:00:00]} Re8 {[%emt 0:07:34]} 24. Rfe1 {[%emt 0:00:00]} c5 {[%emt 0:04:07]} 25. dxc5 {[%emt 0:00:19]} d4 {[%emt 0:00:08]} 26. Rad1 {[%emt 0:00:49]} Rd7 {[%emt 0:05:36]} 27. Bd6 {[%emt 0:00:41]} 1-0

[Event "NED-ch U14 Youth 2019"]
[Site "Assen"]
[Date "2019.05.03"]
[Round "8.7"]
[White "Franke, Daniel"]
[Black "Jakhari, Ansh"]
[Result "0-1"]
[ECO "D37"]
[WhiteElo "1465"]
[BlackElo "1630"]
[Annotator "NA"]
[PlyCount "160"]
[EventDate "2019.04.28"]
[EventType "swiss"]
[EventCountry "NED"]
[SourceTitle "playchess.com"]
[Source "ChessBase"]
[SourceQuality "1"]
[TimeControl "5400+30"]

1. d4 {[%emt 0:00:00]} Nf6 {[%emt 0:00:00]} 2. c4 {[%emt 0:00:00]} e6 {[%emt 0:00:00]} 3. Nf3 {[%emt 0:00:00]} d5 {[%emt 0:00:00]} 4. Nc3 {[%emt 0:00:00]} Bd6 {[%emt 0:01:12]} 5. c5 {[%emt 0:00:03]} Be7 {[%emt 0:00:07]} 6. e3 {[%emt 0:01:12]} b6 {[%emt 0:00:57]} 7. b4 {[%emt 0:03:23]} a5 {[%emt 0:00:48]} 8. bxa5 {[%emt 0:19:06]} bxc5 {[%emt 0:01:27]} 9. dxc5 {[%emt 0:05:37]} Bxc5 {[%emt 0:01:22]} 10. Bd2 {[%emt 0:01:39]} O-O {[%emt 0:04:25]} 11. Bd3 {[%emt 0:01:21]} Nc6 {[%emt 0:01:03]} 12. Qc2 {[%emt 0:14:36]} Nb4 {[%emt 0:00:37]} 13. Qb1 {[%emt 0:04:03]} Nxd3+ {[%emt 1:24:32]} 14. Qxd3 {[%emt 0:01:10]} Ba6 {[%emt 0:00:00]} 15. Qc2 {[%emt 0:01:40]} Bb4 {[%emt 0:00:00]} 16. Ne2 {[%emt 0:02:50]} Bxd2+ {[%emt 0:00:00]} 17. Qxd2 {[%emt 0:01:13]} c5 {[%emt 0:00:00]} 18. O-O {[%emt 0:02:17]} Ne4 {[%emt 0:00:00]} 19. Qc2 {[%emt 0:01:44]} Rc8 {[%emt 0:00:00]} 20. Rfc1 {[%emt 0:01:41]} Qxa5 {[%emt 0:00:00]} 21. Nc3 {[%emt 0:03:55]} Nxc3 {[%emt 0:00:00]} 22. Qxc3 {[%emt 0:00:44]} Qxc3 {[%emt 0:00:00]} 23. Rxc3 {[%emt 0:00:05]} f6 {[%emt 0:00:00]} 24. Rac1 {[%emt 0:02:17]} c4 {[%emt 0:00:00]} 25. Ra3 {[%emt 0:31:54]} Ra8 {[%emt 0:00:00]} 26. Rb1 {[%emt 0:00:00]} Rfb8 {[%emt 0:00:00]} 27. Rxb8+ {[%emt 0:00:00]} Rxb8 {[%emt 0:00:00]} 28. h3 {[%emt 0:00:00]} Ra8 {[%emt 0:00:00]} 29. Rc3 {[%emt 0:00:00]} e5 {[%emt 0:00:00]} 30. Kf1 {[%emt 0:00:00]} Rd8 {[%emt 0:00:00]} 31. Ra3 {[%emt 0:00:00]} Rd6 {[%emt 0:00:00]} 32. Ke1 {[%emt 0:00:00]} Kf7 {[%emt 0:00:00]} 33. g4 {[%emt 0:00:00]} Ke7 {[%emt 0:00:00]} 34. Nh4 {[%emt 0:00:00]} g6 {[%emt 0:00:00]} 35. Nf3 {[%emt 0:00:00]} Kd7 {[%emt 0:00:00]} 36. h4 {[%emt 0:00:00]} Ke6 {[%emt 0:00:00]} 37. g5 {[%emt 0:00:00]} fxg5 {[%emt 0:00:00]} 38. Nxg5+ {[%emt 0:00:00]} Kf5 {[%emt 0:00:00]} 39. Nf3 {[%emt 0:00:00]} Bb7 {[%emt 0:00:00]} 40. Ra5 {[%emt 0:00:00]} Kf6 {[%emt 0:00:00]} 41. Rb5 {[%emt 0:00:00]} Ba6 {[%emt 0:00:00]} 42. Rc5 {[%emt 0:00:00]} Bb7 {[%emt 0:00:00]} 43. Rb5 {[%emt 0:00:00]} Bc8 {[%emt 0:00:00]} 44. Rc5 {[%emt 0:01:41]} Be6 {[%emt 0:00:00]} 45. a4 {[%emt 0:00:58]} Bg4 {[%emt 0:00:00]} 46. Nd2 {[%emt 0:00:04]} Bd7 {[%emt 0:00:00]} 47. a5 {[%emt 0:00:23]} Ke6 {[%emt 0:00:00]} 48. e4 {[%emt 0:02:32]} Ba4 {[%emt 0:00:00]} 49. exd5+ {[%emt 0:01:49]} Rxd5 {[%emt 0:00:00]} 50. Rxc4 {[%emt 0:01:09]} Rxa5 {[%emt 0:00:00]} 51. Ne4 {[%emt 0:00:29]} Kf5 {[%emt 0:00:00]} 52. Ng3+ {[%emt 0:00:50]} Ke6 {[%emt 0:00:00]} 53. Ne4 {[%emt 0:00:09]} Kf5 {[%emt 0:00:00]} 54. Ng3+ {[%emt 0:00:09]} Kf6 {[%emt 0:00:00]} 55. Ne4+ {[%emt 0:00:15]} Kf5 {[%emt 0:00:00]} 56. Ng3+ {[%emt 0:00:10]} Ke6 {[%emt 0:00:00]} 57. Ne4 {[%emt 0:00:10]} Bb5 {[%emt 0:00:00]} 58. Rc5 {[%emt 0:01:16]} Ra1+ {[%emt 0:00:00]} 59. Kd2 {[%emt 0:00:03]} Ba6 {[%emt 0:00:00]} 60. Rc7 {[%emt 0:00:59]} h6 {[%emt 0:00:00]} 61. Ra7 {[%emt 0:01:22]} Ra2+ {[%emt 0:00:00]} 62. Ke1 {[%emt 0:00:19]} Re2+ {[%emt 0:00:00]} 63. Kd1 {[%emt 0:00:16]} Rxe4 {[%emt 0:00:00]} 64. Rxa6+ {[%emt 0:00:06]} Kf5 {[%emt 0:00:00]} 65. h5 {[%emt 0:00:18]} gxh5 {[%emt 0:00:00]} 66. Rxh6 {[%emt 0:00:07]} Kg4 {[%emt 0:00:00]} 67. f3+ {[%emt 0:00:50]} Kxf3 {[%emt 0:00:00]} 68. Rxh5 {[%emt 0:00:06]} Ke3 {[%emt 0:00:00]} 69. Rh3+ {[%emt 0:00:09]} Kf2 {[%emt 0:00:00]} 70. Rh2+ {[%emt 0:00:43]} Kg3 {[%emt 0:00:00]} 71. Ra2 {[%emt 0:01:28]} Rf4 {[%emt 0:00:00]} 72. Ra5 {[%emt 0:00:44]} e4 {[%emt 0:00:00]} 73. Ra4 {[%emt 0:00:22]} Kf3 {[%emt 0:00:00]} 74. Ke1 {[%emt 0:00:59]} Rh4 {[%emt 0:30:30]} 75. Ra8 {[%emt 0:01:21]} Rh1+ {[%emt 0:00:00]} 76. Kd2 {[%emt 0:00:05]} e3+ {[%emt 0:00:00]} 77. Kd3 {[%emt 0:01:08]} Rd1+ {[%emt 0:00:00]} 78. Kc2 {[%emt 0:01:01]} e2 {[%emt 0:00:00]} 79. Ra3+ {[%emt 0:00:53]} Kf2 {[%emt 0:00:00]} 80. Rd3 {[%emt 0:01:23]} Rxd3 {[%emt 0:00:00]} 0-1

[Event "NED-ch U14 Youth 2019"]
[Site "Assen"]
[Date "2019.05.03"]
[Round "8.9"]
[White "De Heij, Mees"]
[Black "Arnold, Lorin"]
[Result "0-1"]
[ECO "B32"]
[WhiteElo "1524"]
[BlackElo "1598"]
[Annotator "NA"]
[PlyCount "94"]
[EventDate "2019.04.28"]
[EventType "swiss"]
[EventCountry "NED"]
[SourceTitle "playchess.com"]
[Source "ChessBase"]
[SourceQuality "1"]
[TimeControl "5400+30"]

1. e4 {[%emt 0:00:00]} c5 {[%emt 0:00:03]} 2. Nf3 {[%emt 0:00:00]} Nc6 {[%emt 0:00:26]} 3. d4 {[%emt 0:00:36]} cxd4 {[%emt 0:00:14]} 4. Nxd4 {[%emt 0:00:10]} e5 {[%emt 0:00:07]} 5. Nb5 {[%emt 0:01:24]} d6 {[%emt 0:00:09]} 6. N1c3 {[%emt 0:01:06]} a6 {[%emt 0:00:07]} 7. Na3 {[%emt 0:00:23]} b5 {[%emt 0:00:15]} 8. Nd5 {[%emt 0:00:11]} Nge7 {[%emt 0:00:08]} 9. Bg5 {[%emt 0:06:21]} h6 {[%emt 0:01:13]} 10. Bh4 {[%emt 0:01:03]} Bb7 {[%emt 0:05:23]} 11. c3 {[%emt 0:02:52]} Qa5 {[%emt 0:03:20]} 12. Be2 {[%emt 0:05:42]} Nxd5 {[%emt 0:00:13]} 13. exd5 {[%emt 0:00:17]} Ne7 {[%emt 0:00:16]} 14. O-O {[%emt 0:01:25]} g5 {[%emt 0:05:29]} 15. Bg3 {[%emt 0:00:37]} Bg7 {[%emt 0:01:09]} 16. Bf3 {[%emt 0:01:22]} O-O {[%emt 0:02:05]} 17. Qd2 {[%emt 0:05:12]} f5 {[%emt 0:03:34]} 18. h3 {[%emt 0:00:30]} Rad8 {[%emt 0:05:29]} 19. Rfe1 {[%emt 0:02:13]} e4 {[%emt 0:01:57]} 20. Bd1 {[%emt 0:10:44]} Bxd5 {[%emt 0:03:35]} 21. Bb3 {[%emt 0:01:15]} Bxb3 {[%emt 0:02:17]} 22. axb3 {[%emt 0:00:19]} Qb6 {[%emt 0:01:05]} 23. c4 {[%emt 0:08:12]} bxc4 {[%emt 0:03:01]} 24. Nxc4 {[%emt 0:05:10]} Qxb3 {[%emt 0:00:34]} 25. Nxd6 {[%emt 0:09:09]} f4 {[%emt 0:05:58]} 26. Rxe4 {[%emt 0:04:59]} Nf5 {[%emt 0:07:55]} 27. Ra3 {[%emt 0:04:35]} Rxd6 {[%emt 0:11:40]} 28. Qxd6 {[%emt 0:09:16]} Nxd6 {[%emt 0:00:05]} 29. Rxb3 {[%emt 0:00:08]} Nxe4 {[%emt 0:01:50]} 30. Bh2 {[%emt 0:01:23]} Rc8 {[%emt 0:00:23]} 31. g3 {[%emt 0:01:08]} Nd2 {[%emt 0:00:07]} 32. Rd3 {[%emt 0:01:57]} f3 {[%emt 0:00:38]} 33. Kh1 {[%emt 0:00:10]} Rc1+ {[%emt 0:00:08]} 34. Bg1 {[%emt 0:00:05]} Rd1 {[%emt 0:09:08]} 35. b3 {[%emt 0:00:53]} a5 {[%emt 0:05:03]} 36. Rd7 {[%emt 0:00:33]} Bc3 {[%emt 0:02:49]} 37. Rd6 {[%emt 0:00:30]} Kg7 {[%emt 0:00:28]} 38. Rd7+ {[%emt 0:00:23]} Kf6 {[%emt 0:00:36]} 39. Rd6+ {[%emt 0:00:11]} Kf5 {[%emt 0:01:02]} 40. Rxh6 {[%emt 0:03:21]} Nxb3 {[%emt 0:00:12]} 41. g4+ {[%emt 0:00:55]} Kf4 {[%emt 0:00:40]} 42. Rc6 {[%emt 0:00:51]} Nd4 {[%emt 0:02:45]} 43. Rxc3 {[%emt 0:02:47]} Rxg1+ {[%emt 0:00:22]} 44. Kh2 {[%emt 0:00:34]} Rg2+ {[%emt 0:00:17]} 45. Kh1 {[%emt 0:00:20]} Rxf2 {[%emt 0:00:11]} 46. Rc4 {[%emt 0:00:42]} Kg3 {[%emt 0:00:12]} 47. Rc1 {[%emt 0:00:47]} Rh2+ {[%emt 0:00:03]} 0-1